bitfinex-derivatives/quotes_BNBF0:USTF0_20250326
["timestamp","ask_amount","ask_price","bid_price","bid_amount"]
[1742967197378,0.29134084,631.1,630.12,1.18433116]
[1742967197576,0.29134084,631.12,630.12,1.18433116]
[1742967197771,0.31690698,631.1,630.12,1.18433116]
[1742967197974,0.29134084,631.09,630.12,1.18433116]
[1742967198879,0.31692205,631.07,630.12,1.18433116]
[1742967199379,0.31692205,631.07,629.68,1.25598301]
[1742967199380,0.31692205,631.07,630.11,1.18433116]
[1742967199579,0.29134148,631.06,630.11,1.18433116]
[1742967199779,0.31693209,631.05,630.11,1.18433116]
[1742967199974,0.29134148,631.04,630.11,1.18433116]
[1742967200176,0.31694214,631.03,630.11,1.18433116]
[1742967200880,0.31694214,631.03,630.12,1.18433116]
[1742967202077,0.27594082,631.02,630.12,1.18433116]
[1742967202281,0.31695218,631.01,630.12,1.18433116]
[1742967203185,0.31695218,631.01,630.09,1.18433116]
[1742967205181,0.27594191,631.0,630.09,1.18433116]
[1742967205387,0.31696223,630.99,630.09,1.18433116]
[1742967207691,0.27594191,630.98,630.09,1.18433116]
[1742967207886,0.31697228,630.97,630.09,1.18433116]
[1742967208884,0.462,630.96,630.09,1.18433116]
[1742967209085,0.31698232,630.95,630.09,1.18433116]
[1742967209789,0.31698232,630.95,630.11,1.18433116]
[1742967210682,0.27601523,630.94,630.11,1.18433116]
[1742967210888,0.31699237,630.93,630.11,1.18433116]
[1742967213083,0.31699237,630.93,630.15,1.18433116]
[1742967213686,0.27600428,630.92,630.15,1.18433116]
[1742967213889,0.31700242,630.91,630.15,1.18433116]
[1742967215683,0.31700242,630.91,629.77,1.18433116]
[1742967216591,0.27604807,630.9,629.77,1.18433116]
[1742967216791,0.59305551,630.9,629.77,1.18433116]
[1742967218193,1.075,630.89,629.79,1.18433116]
[1742967218493,2.352,630.89,629.79,1.18433116]
[1742967220195,0.27605354,630.88,629.79,1.18433116]
[1742967221891,2.352,630.89,629.79,1.18433116]
[1742967222297,2.352,630.89,629.8,0.26747072]
[1742967223100,0.27604698,630.88,629.8,0.26747072]
[1742967224902,2.352,630.89,629.79,1.18433116]
[1742967225098,2.352,630.89,629.81,0.26746982]
[1742967225297,2.352,630.89,629.82,0.26746982]
[1742967225700,2.352,630.89,629.79,1.18433116]
[1742967225901,2.352,630.89,630.03,1.18433116]
[1742967226101,0.27604698,630.88,630.03,1.18433116]
[1742967227902,2.352,630.89,622.6,9.47018643]
[1742967227903,2.352,630.89,630.01,1.18433116]
[1742967229206,0.27602289,630.88,630.01,1.18433116]
[1742967229908,0.462,630.87,630.01,1.18433116]
[1742967231905,0.27601851,630.86,630.01,1.18433116]
[1742967232405,0.27601851,630.86,630.09,1.18433116]
[1742967232808,0.27601851,630.86,630.1,0.267365]
[1742967233808,1.038,630.85,630.1,0.267365]
[1742967234709,0.27601413,630.84,630.1,0.267365]
[1742967234909,0.27601413,630.84,630.24,1.18433116]
[1742967239916,1.038,630.85,630.29,1.18433116]
[1742967241211,0.27599224,630.84,630.29,1.18433116]
[1742967242115,0.27599224,630.84,630.25,1.18433116]
[1742967244417,0.27599224,630.84,630.19,1.18433116]
[1742967245319,0.462,630.83,630.19,1.18433116]
[1742967246719,0.462,630.83,629.76,0.98000683]
[1742967246720,0.462,630.83,630.17,1.18433116]
[1742967247118,0.27599224,630.82,630.17,1.18433116]
[1742967248321,1.38599224,630.82,630.17,1.18433116]
[1742967249021,1.11,630.82,630.17,1.18433116]
[1742967249217,1.11,630.82,630.14,1.18433116]
[1742967250121,0.27600538,630.81,630.14,1.18433116]
[1742967251523,0.27600538,630.81,630.15,1.18433116]
[1742967251918,1.11,630.82,630.15,1.18433116]
[1742967252318,2.045,630.82,630.15,1.18433116]
[1742967253124,0.27600428,630.81,630.15,1.18433116]
[1742967254537,0.27600428,630.81,630.19,1.18433116]
[1742967254936,2.045,630.82,630.19,1.18433116]
[1742967256236,0.2759999,630.81,630.19,1.18433116]
[1742967256935,0.2759999,630.81,630.2,1.18433116]
[1742967257937,2.045,630.82,630.2,1.18433116]
[1742967258540,0.27599881,630.81,630.2,1.18433116]
[1742967259940,0.27599881,630.81,629.78,0.27599881]
[1742967259941,0.27599881,630.81,630.26,1.18433116]
[1742967261034,2.045,630.82,630.26,1.18433116]
[1742967261439,0.27599224,630.81,630.26,1.18433116]
[1742967262043,0.27599224,630.81,630.27,1.18433116]
[1742967264041,2.045,630.82,630.27,1.18433116]
[1742967264237,0.27599115,630.81,630.27,1.18433116]
[1742967264441,0.27599115,630.81,630.26,1.18433116]
[1742967266844,0.463,630.8,630.28,1.18433116]
[1742967270146,0.463,630.8,630.27,1.18433116]
[1742967274142,0.463,630.8,630.25,1.18433116]
[1742967276347,0.463,630.8,630.3,1.18433116]
[1742967277750,1.194,630.79,630.3,1.18433116]
[1742967278955,1.194,630.79,630.29,1.18433116]
[1742967281955,1.194,630.79,630.1,1.18508954]
[1742967281956,1.194,630.79,630.22,1.18433116]
[1742967283955,1.194,630.79,630.1,1.18433116]
[1742967285550,0.865,630.78,630.1,1.18433116]
[1742967285757,0.865,630.78,630.08,1.18433116]
[1742967288257,0.865,630.78,630.06,1.18433116]
[1742967290760,0.463,630.77,630.01,1.18433116]
[1742967291760,0.463,630.77,630.02,0.26703978]
[1742967294154,0.463,630.77,630.01,0.26703978]
[1742967294359,0.463,630.77,630.02,0.26702652]
[1742967294560,0.463,630.77,630.01,0.26702652]
[1742967294760,0.463,630.77,630.02,0.26702652]
[1742967294959,0.463,630.77,630.01,0.26702652]
[1742967295160,0.463,630.77,630.03,0.26702652]
[1742967295362,0.463,630.77,630.0,1.18433116]
[1742967295758,0.463,630.77,630.01,0.26703257]
[1742967295969,0.463,630.77,630.0,1.18433116]
[1742967296163,0.463,630.77,630.01,0.26697111]
[1742967296762,0.463,630.77,630.11,1.18433116]
[1742967297462,1.149,630.76,630.11,1.18433116]
[1742967298560,1.149,630.76,630.15,1.18433116]
[1742967298766,1.149,630.76,630.16,0.26678066]
[1742967299761,1.081,630.75,630.16,0.26678066]
[1742967301670,1.081,630.75,630.46,1.18433116]
[1742967303874,1.081,630.75,630.37,1.18433116]
[1742967304075,1.081,630.75,630.38,0.2667661]
[1742967307485,1.081,630.75,630.31,1.18433116]
[1742967308183,1.081,630.75,630.32,0.26673652]
[1742967308883,1.081,630.75,630.33,0.26673652]
[1742967309085,1.081,630.75,630.3,0.26673652]
[1742967309788,1.081,630.75,630.29,1.18433116]
[1742967310087,1.081,630.75,630.3,0.26673165]
[1742967313590,1.081,630.75,630.33,1.18433116]
[1742967316090,1.081,630.75,630.12,1.18433116]
[1742967316285,1.081,630.75,630.13,0.26667827]
[1742967318292,0.463,630.74,630.13,0.26667827]
[1742967318486,0.463,630.74,630.11,0.5426169]
[1742967318688,0.463,630.74,630.12,0.26667827]
[1742967319093,1.073,630.73,630.12,0.26667827]
[1742967321095,1.073,630.73,630.11,1.46026979]
[1742967321297,1.073,630.73,630.12,0.26671074]
[1742967324201,1.153,630.72,630.12,0.26671074]
[1742967325801,1.153,630.72,630.29,1.18433116]
[1742967325995,1.153,630.72,630.3,0.26671074]
[1742967327899,1.153,630.72,630.44,1.18433116]
[1742967328201,1.153,630.72,630.45,0.26671074]
[1742967329894,1.153,630.72,630.49,1.18433116]
[1742967331602,1.153,630.72,630.52,1.18433116]
[1742967333707,1.153,630.72,630.5,1.18433116]
[1742967335303,1.073,630.73,630.5,1.18433116]
[1742967336812,1.073,630.73,630.54,1.18433116]
[1742967339010,1.073,630.73,630.52,1.18433116]
[1742967341216,1.073,630.73,630.59,1.18433116]
[1742967343321,1.073,630.73,630.63,1.18433116]
[1742967345521,1.073,630.73,630.31,1.18433116]
[1742967348217,0.97,630.86,630.31,1.18433116]
[1742967348921,0.463,630.85,630.31,1.18433116]
[1742967350625,0.463,630.85,630.3,1.18433116]
[1742967351023,0.917,630.84,630.3,1.18433116]
[1742967352526,0.917,630.84,630.34,1.18433116]
[1742967353630,0.917,630.84,630.35,0.26668606]
[1742967354828,0.917,630.84,630.44,1.18433116]
[1742967355129,0.917,630.84,630.45,0.26668606]
[1742967356625,0.917,630.84,630.57,1.18433116]
[1742967358430,0.917,630.84,630.62,1.18433116]
[1742967365832,0.917,630.84,630.63,1.18433116]
[1742967368546,0.917,630.84,630.64,1.18433116]
[1742967370048,0.463,630.85,630.64,1.18433116]
[1742967370844,0.463,630.85,630.63,1.18433116]
[1742967373455,0.463,630.85,630.48,1.18433116]
[1742967373954,0.864,630.84,630.48,1.18433116]
[1742967375755,0.864,630.84,630.46,1.18433116]
[1742967378456,0.864,630.84,630.48,1.18433116]
[1742967381458,0.463,630.83,630.48,1.18433116]
[1742967382753,0.463,630.83,630.47,1.18433116]
[1742967384759,0.463,630.83,629.86,1.42146492]
[1742967384760,0.463,630.83,630.46,1.18433116]
[1742967388156,0.463,630.83,630.59,1.18433116]
[1742967391064,0.463,630.83,630.57,1.18433116]
[1742967393666,0.463,630.83,630.49,1.18433116]
[1742967398676,0.463,630.83,630.48,1.18433116]
[1742967403272,0.463,630.83,630.42,1.18433116]
[1742967403975,1.672,630.83,630.42,1.18433116]
[1742967404582,3.054,630.83,630.42,1.18433116]
[1742967406178,3.054,630.83,630.26,1.18433116]
[1742967408578,3.054,630.83,630.31,1.18433116]
[1742967414582,3.054,630.83,630.32,1.18433116]
[1742967414782,3.054,630.83,630.33,0.26689345]
[1742967415184,3.054,630.83,630.34,0.26688927]
[1742967415484,3.054,630.83,630.33,0.26688927]
[1742967415681,3.054,630.83,630.34,0.26688927]
[1742967415882,3.054,630.83,630.33,0.26688927]
[1742967416083,3.054,630.83,630.34,0.26688927]
[1742967416283,3.054,630.83,630.33,0.26688927]
[1742967416479,3.054,630.83,630.34,0.26688927]
[1742967416682,3.054,630.83,630.35,0.26688927]
[1742967416884,3.054,630.83,630.32,1.18433116]
[1742967417085,3.054,630.83,630.33,0.2668924]
[1742967417286,3.054,630.83,630.5,1.18433116]
[1742967417487,3.054,630.83,630.51,0.2668924]
[1742967417688,3.054,630.83,630.5,1.18433116]
[1742967419090,3.054,630.83,630.6,1.18433116]
[1742967419488,0.27591456,631.13,630.6,1.18433116]
[1742967419990,2.42698179,632.01,630.6,1.18433116]
[1742967420191,0.29115836,632.0,630.6,1.18433116]
[1742967420390,0.31646571,631.98,630.6,1.18433116]
[1742967420784,0.29116167,631.97,630.6,1.18433116]
[1742967420997,0.31648073,631.95,630.6,1.18433116]
[1742967421198,0.29116167,631.94,630.6,1.18433116]
[1742967421393,0.31649575,631.92,630.6,1.18433116]
[1742967421600,0.29116167,631.91,630.6,1.18433116]
[1742967421798,0.31651078,631.89,630.6,1.18433116]
[1742967422101,0.29116167,631.88,630.6,1.18433116]
[1742967422301,0.31652581,631.86,630.6,1.18433116]
[1742967422496,0.29116167,631.85,630.6,1.18433116]
[1742967422696,0.31654084,631.83,630.6,1.18433116]
[1742967422904,0.29116167,631.82,630.6,1.18433116]
[1742967423105,0.31655587,631.8,630.6,1.18433116]
[1742967423297,0.29116167,631.79,630.6,1.18433116]
[1742967423502,0.3165709,631.77,630.58,1.18433116]
[1742967423901,0.29115926,631.76,630.58,1.18433116]
[1742967424103,0.31658593,631.74,630.58,1.18433116]
[1742967424302,0.29115926,631.73,630.58,1.18433116]
[1742967424500,0.31660097,631.71,630.58,1.18433116]
[1742967424804,0.29115926,631.7,630.58,1.18433116]
[1742967425002,0.316616,631.68,630.58,1.18433116]
[1742967425203,0.29115926,631.67,630.58,1.18433116]
[1742967425400,0.29115926,631.67,630.1,0.97822869]
[1742967425401,0.31663104,631.65,630.6,1.18433116]
[1742967425801,0.29115872,631.64,630.6,1.18433116]
[1742967426004,0.31664608,631.62,630.6,1.18433116]
[1742967426205,0.29115872,631.61,630.6,1.18433116]
[1742967426405,0.31666112,631.59,630.6,1.18433116]
[1742967426610,0.29115872,631.58,630.6,1.18433116]
[1742967427206,0.31667616,631.56,630.6,1.18433116]
[1742967427608,0.29115433,631.55,630.6,1.18433116]
[1742967427803,0.31669121,631.53,630.6,1.18433116]
[1742967428007,0.29115433,631.52,630.6,1.18433116]
[1742967428307,0.31670625,631.5,630.6,1.18433116]
[1742967428606,0.29115433,631.49,630.6,1.18433116]
[1742967428807,0.3167213,631.47,630.6,1.18433116]
[1742967429001,0.29115433,631.46,630.6,1.18433116]
[1742967429302,0.3167213,631.47,630.6,1.18433116]
[1742967429501,0.29115434,631.46,630.6,1.18433116]
[1742967429703,0.31673634,631.44,630.6,1.18433116]
[1742967429902,0.29115434,631.43,630.6,1.18433116]
[1742967430102,0.31674638,631.42,630.6,1.18433116]
[1742967431614,0.31674638,631.42,630.57,1.18433116]
[1742967432614,0.2757932,631.41,630.57,1.18433116]
[1742967432810,0.31675641,631.4,630.57,1.18433116]
[1742967434108,0.31675641,631.4,630.58,1.18433116]
[1742967438915,0.31675641,631.4,630.59,1.18433116]
[1742967439214,0.27579211,631.39,630.59,1.18433116]
[1742967439410,0.31676644,631.38,630.59,1.18433116]
[1742967440718,0.31676644,631.38,630.6,1.18433116]
[1742967442216,0.27578992,631.37,630.6,1.18433116]
[1742967442417,0.31677648,631.36,630.6,1.18433116]
[1742967442817,0.31677648,631.36,630.63,1.18433116]
[1742967443917,1.062,631.35,630.63,1.18433116]
[1742967444111,0.31678651,631.34,630.63,1.18433116]
[1742967445118,0.31678651,631.34,630.53,1.18433116]
[1742967445311,0.27583911,631.33,630.53,1.18433116]
[1742967445513,0.31679655,631.32,630.53,1.18433116]
[1742967448319,0.27585004,631.31,630.53,1.18433116]
[1742967448521,0.31680658,631.3,630.53,1.18433116]
[1742967451416,0.27585004,631.29,630.53,1.18433116]
[1742967451616,0.31681662,631.28,630.53,1.18433116]
[1742967452216,0.31681662,631.28,630.54,1.18433116]
[1742967453221,0.464,631.27,630.54,1.18433116]
[1742967453423,0.31682666,631.26,630.54,1.18433116]
[1742967453819,1.70782666,631.26,630.54,1.18433116]
[1742967454018,0.2758577,631.25,630.54,1.18433116]
[1742967454331,0.3168367,631.24,630.65,1.18433116]
[1742967457024,0.3168367,631.24,630.67,1.18433116]
[1742967459626,0.3168367,631.24,630.6,1.18433116]
[1742967460125,0.27583692,631.23,630.6,1.18433116]
[1742967461927,0.27583692,631.23,630.53,1.18433116]
[1742967462129,0.3168367,631.24,630.53,1.18433116]
[1742967463329,1.24884458,631.23,630.53,1.18433116]
[1742967463928,1.24884458,631.23,630.54,1.18433116]
[1742967465030,0.973,631.23,630.54,1.18433116]
[1742967465730,0.973,631.23,630.53,1.18433116]
[1742967466129,0.27584786,631.22,630.53,1.18433116]
[1742967468029,0.973,631.23,630.53,1.18433116]
[1742967469329,0.27584786,631.22,630.53,1.18433116]
[1742967470124,0.27584786,631.22,630.54,0.26674621]
[1742967470330,0.27584786,631.22,630.57,1.18433116]
[1742967471031,0.973,631.23,630.57,1.18433116]
[1742967472231,0.27584348,631.22,630.57,1.18433116]
[1742967472834,0.27584348,631.22,630.67,1.18433116]
[1742967474035,0.973,631.23,630.67,1.18433116]
[1742967474234,0.464,631.21,630.67,1.18433116]
[1742967475335,0.27583255,631.2,630.67,1.18433116]
[1742967475635,0.27583255,631.2,630.69,1.18433116]
[1742967477034,0.464,631.21,630.69,1.18433116]
[1742967477233,1.038,631.2,630.69,1.18433116]
[1742967477534,1.038,631.2,630.68,1.18433116]
[1742967478334,0.27583474,631.19,630.68,1.18433116]
[1742967479834,0.27583474,631.19,630.7,1.18433116]
[1742967480034,1.038,631.2,630.7,1.18433116]
[1742967480631,0.27583255,631.19,630.7,1.18433116]
[1742967482335,0.27583255,631.19,630.66,1.18433116]
[1742967483041,1.038,631.2,630.66,1.18433116]
[1742967483635,0.27583692,631.19,630.66,1.18433116]
[1742967484638,0.27583692,631.19,630.64,1.18433116]
[1742967486042,1.038,631.2,630.64,1.18433116]
[1742967486838,2.021,631.2,630.65,1.18433116]
[1742967487243,0.27583802,631.19,630.65,1.18433116]
[1742967487440,0.31686682,631.18,630.65,1.18433116]
[1742967489550,0.31686682,631.18,630.09,1.18433116]
[1742967490049,0.29134616,631.17,630.09,1.18433116]
[1742967490244,0.31688188,631.15,630.09,1.18433116]
[1742967491251,0.29134774,631.14,630.09,1.18433116]
[1742967491444,0.31689694,631.12,630.09,1.18433116]
[1742967492052,0.29136539,631.11,630.09,1.18433116]
[1742967492351,0.316912,631.09,630.09,1.18433116]
[1742967492553,0.29136539,631.08,630.09,1.18433116]
[1742967492754,0.31692707,631.06,630.09,1.18433116]
[1742967492950,0.31692707,631.06,629.82,1.18433116]
[1742967493149,0.31692707,631.06,629.83,0.2674902]
[1742967493349,0.29138249,631.05,629.83,0.2674902]
[1742967493549,0.31694214,631.03,629.83,0.2674902]
[1742967493754,0.31694214,631.03,629.84,0.26751822]
[1742967493952,0.31694214,631.03,629.85,0.26751822]
[1742967494250,0.31694214,631.03,629.86,0.26751822]
[1742967494453,0.31694214,631.03,629.83,0.26751822]
[1742967494650,0.31694214,631.03,629.84,0.26751822]
[1742967494854,0.31694214,631.03,629.83,0.26751822]
[1742967495056,0.31694214,631.03,629.84,0.26751822]
[1742967495249,0.31694214,631.03,629.83,0.26751822]
[1742967495450,1.32302946,631.02,629.83,0.26751822]
[1742967495650,0.31695218,631.01,629.83,0.26751822]
[1742967496854,0.31695218,631.01,629.67,0.26751822]
[1742967497054,0.31695218,631.01,629.68,0.26751822]
[1742967497256,0.31695218,631.01,629.67,0.26751822]
[1742967497556,0.31695218,631.01,629.68,0.26751822]
[1742967497757,0.31695218,631.01,629.67,0.26751822]
[1742967497956,0.31695218,631.01,629.68,0.26751822]
[1742967498256,0.31695218,631.01,629.67,0.26751822]
[1742967498457,0.31695218,631.01,629.68,0.26751822]
[1742967498758,0.27607325,631.0,629.69,0.26751822]
[1742967499057,0.31696223,630.99,629.7,0.26751822]
[1742967499559,0.464,630.98,629.71,0.26751822]
[1742967499754,0.31697228,630.97,629.67,0.26751822]
[1742967501057,0.31697228,630.97,629.52,1.18433116]
[1742967501258,0.31697228,630.97,629.56,0.26752242]
[1742967501450,0.31697228,630.97,629.56,0.86129101]
[1742967501451,0.2760864,630.96,629.56,0.86129101]
[1742967501653,0.31698232,630.95,629.57,0.26752242]
[1742967504559,0.27608421,630.94,629.57,0.26752242]
[1742967504760,0.31699237,630.93,629.56,0.5937664]
[1742967504958,0.31699237,630.93,629.57,0.26752064]
[1742967506561,0.31699237,630.93,629.56,0.5937664]
[1742967506863,0.31699237,630.93,629.57,0.267534]
[1742967507661,0.27608202,630.92,629.57,0.267534]
[1742967507862,0.31700242,630.91,629.57,0.267534]
[1742967510265,0.31700242,630.91,629.56,0.31768219]
[1742967510467,0.27608859,630.9,629.57,0.26753085]
[1742967510763,0.31701247,630.89,629.57,0.26753085]
[1742967513766,0.31701247,630.89,629.57,1.45186201]
[1742967514066,0.31701247,630.89,629.58,0.26753085]
[1742967514265,1.132,630.88,629.58,0.26753085]
[1742967514467,0.31702252,630.87,629.58,0.26753085]
[1742967515368,0.31702252,630.87,629.57,1.18433116]
[1742967515570,0.31702252,630.87,629.58,0.26756315]
[1742967516168,0.31702252,630.87,629.61,1.18433116]
[1742967516368,0.31702252,630.87,629.62,0.26756288]
[1742967517269,0.27608749,630.86,629.62,0.26756288]
[1742967517470,0.31703257,630.85,629.62,0.26756288]
[1742967518770,0.31703257,630.85,629.65,1.18433116]
[1742967518966,0.31703257,630.85,629.66,0.26756288]
[1742967519865,0.31703257,630.85,629.67,0.26756594]
[1742967520071,0.31703257,630.85,629.68,0.26756594]
[1742967520270,0.27608311,630.84,629.66,0.26756594]
[1742967521066,0.27608311,630.84,629.78,1.18433116]
[1742967521271,0.464,630.83,629.79,0.26756594]
[1742967522866,0.27607216,630.82,629.79,0.26756594]
[1742967523066,0.27607216,630.82,629.93,1.18433116]
[1742967525067,0.464,630.83,629.94,0.26757848]
[1742967525472,0.27605792,630.81,629.94,0.26757848]
[1742967526173,0.27605792,630.81,630.09,1.18433116]
[1742967527972,0.27605792,630.81,630.17,1.18433116]
[1742967528173,0.464,630.83,630.17,1.18433116]
[1742967528472,0.27600976,630.8,630.17,1.18433116]
[1742967530574,0.27600976,630.8,630.15,1.18433116]
[1742967531073,0.464,630.83,630.15,1.18433116]
[1742967531468,0.27600976,630.82,630.15,1.18433116]
[1742967534073,1.309,630.83,630.15,1.18433116]
[1742967534572,0.27601194,630.82,630.15,1.18433116]
[1742967535674,0.74001194,630.82,630.07,1.18433116]
[1742967537074,0.464,630.82,630.07,1.18433116]
[1742967537477,0.2760207,630.81,630.07,1.18433116]
[1742967537873,0.2760207,630.81,630.05,1.18433116]
[1742967539971,0.2760207,630.81,630.07,1.18433116]
[1742967540174,0.464,630.82,630.07,1.18433116]
[1742967540575,0.2760218,630.8,630.07,1.18433116]
[1742967542279,0.2760218,630.8,630.08,0.2675113]
[1742967543073,0.464,630.82,630.08,1.45184246]
[1742967543275,0.464,630.82,630.09,0.2675113]
[1742967543477,0.2760218,630.79,630.09,0.2675113]
[1742967545378,0.2760218,630.79,630.18,1.18433116]
[1742967546078,0.464,630.82,630.18,1.18433116]
[1742967546479,0.27600976,630.78,630.18,1.18433116]
[1742967547882,0.27600976,630.78,630.19,1.18433116]
[1742967549076,0.464,630.82,630.19,1.18433116]
[1742967550380,0.464,630.82,630.01,1.18508954]
[1742967550381,0.27600757,630.81,630.13,1.18433116]
[1742967552082,0.464,630.82,630.14,1.18433116]
[1742967553278,0.464,630.82,630.13,1.18433116]
[1742967553485,0.27601304,630.81,630.13,1.18433116]
[1742967555084,0.464,630.82,630.13,1.18433116]
[1742967556386,0.27601194,630.81,630.13,1.18433116]
[1742967557285,1.237,630.8,630.13,1.18433116]
[1742967557685,0.871,630.79,630.13,1.18433116]
[1742967559386,0.2760207,630.78,630.19,1.18433116]
[1742967559587,0.7400207,630.78,630.19,1.18433116]
[1742967560988,0.464,630.78,630.19,1.18433116]
[1742967562288,0.27601413,630.77,630.18,1.18433116]
[1742967563983,0.464,630.78,630.18,1.18433116]
[1742967564285,0.464,630.78,630.21,1.18433116]
[1742967564691,0.27601304,630.77,630.21,1.18433116]
[1742967567091,0.464,630.78,630.21,1.18433116]
[1742967567590,0.27600976,630.77,630.21,1.18433116]
[1742967570092,0.464,630.78,630.21,1.18433116]
[1742967570695,0.464,630.78,630.0,1.18433116]
[1742967572491,0.464,630.78,629.98,1.18433116]
[1742967574803,0.464,630.78,629.96,1.18433116]
[1742967576304,0.464,630.78,629.97,0.26752245]
[1742967576898,0.464,630.78,629.96,1.18433116]
[1742967577103,0.464,630.78,629.97,0.26751979]
[1742967577904,0.464,630.78,629.99,1.18433116]
[1742967578104,0.464,630.78,630.0,0.26751979]
[1742967580201,0.464,630.78,630.25,1.18433116]
[1742967583108,0.464,630.78,630.17,1.18433116]
[1742967585513,0.464,630.78,629.94,1.18508954]
[1742967585514,0.464,630.78,630.18,1.18433116]
[1742967587616,0.31703257,630.85,630.18,1.18433116]
[1742967588416,0.31703257,630.85,630.16,1.18433116]
[1742967588816,0.876,630.84,630.16,1.18433116]
[1742967589012,1.997,630.84,630.16,1.18433116]
[1742967590315,1.997,630.84,630.17,0.26745883]
[1742967590711,0.465,630.83,630.17,0.26745883]
[1742967591313,0.465,630.83,630.16,1.18433116]
[1742967595819,0.465,630.83,630.19,1.18433116]
[1742967598123,0.465,630.83,630.2,1.18433116]
[1742967600023,0.465,630.83,630.22,1.18433116]
[1742967601118,0.465,630.83,630.23,0.26746377]
[1742967602924,0.465,630.83,630.23,1.45179493]
[1742967603123,0.465,630.83,630.24,0.26746377]
[1742967604521,0.465,630.83,630.37,1.18433116]
[1742967606126,1.706,630.83,630.37,1.18433116]
[1742967606527,1.706,630.83,630.34,1.18433116]
[1742967610327,0.27599334,630.82,630.34,1.18433116]
[1742967611634,0.31705267,630.81,630.34,1.18433116]
[1742967613334,0.31705267,630.81,630.09,1.18433116]
[1742967613540,0.871,630.8,630.09,1.18433116]
[1742967613733,1.1880577,630.8,630.09,1.18433116]
[1742967615540,0.27604588,630.79,630.09,1.18433116]
[1742967615940,0.27604588,630.79,629.62,0.27604588]
[1742967616138,0.27604588,630.79,629.63,0.26773863]
[1742967617540,0.27604588,630.79,629.62,0.27604588]
[1742967617740,0.27604588,630.79,629.63,0.26773268]
[1742967618136,1.1880577,630.8,629.63,0.26773268]
[1742967618335,1.1880577,630.8,629.68,1.18433116]
[1742967618541,0.27610173,630.78,629.69,0.26773268]
[1742967619442,0.27610173,630.78,629.68,1.18433116]
[1742967619742,0.27610173,630.78,629.69,0.26772995]
[1742967620643,0.27610173,630.78,629.87,1.18433116]
[1742967620939,0.465,630.77,629.88,0.26772995]
[1742967621545,0.2760634,630.76,629.88,0.26772995]
[1742967621843,0.2760634,630.76,629.87,1.18433116]
[1742967624139,0.465,630.77,629.87,1.18433116]
[1742967624445,0.465,630.77,629.58,1.18460024]
[1742967624446,0.465,630.77,629.58,1.18433116]
[1742967624645,0.27606997,630.76,629.64,0.27606997]
[1742967624843,0.27606997,630.76,629.65,0.26775684]
[1742967627144,0.465,630.77,629.65,0.26775684]
[1742967627444,0.465,630.77,629.66,0.26775684]
[1742967627640,0.27610502,630.75,629.64,0.27610173]
[1742967627839,0.27610502,630.75,629.65,0.26774649]
[1742967628846,0.27610502,630.75,629.64,0.27610173]
[1742967629046,0.27610502,630.75,629.65,0.26775176]
[1742967630145,1.188,630.74,629.65,0.26775176]
[1742967630343,1.188,630.74,629.57,0.26775176]
[1742967630552,1.188,630.74,629.56,1.50201335]
[1742967630746,0.27611049,630.73,629.64,0.27611049]
[1742967630946,0.27611049,630.73,629.65,0.267747]
[1742967631146,0.27611049,630.73,629.57,1.45207816]
[1742967631347,0.27611049,630.73,629.58,0.267747]
[1742967631643,0.27611049,630.73,629.58,0.5438564]
[1742967631849,0.982,630.72,629.59,0.267747]
[1742967632652,0.982,630.72,629.6,0.26774719]
[1742967632952,0.982,630.72,629.61,0.26774719]
[1742967633153,0.982,630.72,629.59,0.26774719]
[1742967633449,0.982,630.72,629.71,1.18433116]
[1742967633654,0.27611159,630.71,629.72,0.26774719]
[1742967634555,0.27611159,630.71,629.73,0.2677452]
[1742967634753,0.27611159,630.71,629.72,0.2677452]
[1742967634950,0.27611159,630.71,629.73,0.2677452]
[1742967635150,0.27611159,630.71,629.74,0.2677452]
[1742967635348,0.27611159,630.71,629.72,0.2677452]
[1742967635552,0.27611159,630.71,629.75,1.18433116]
[1742967636053,0.27611159,630.71,629.76,0.2677452]
[1742967636254,0.982,630.72,629.76,0.2677452]
[1742967636449,0.982,630.72,629.75,1.18433116]
[1742967636656,0.27609187,630.7,629.76,0.26774498]
[1742967638057,0.27609187,630.7,629.84,1.18433116]
[1742967638253,0.27609187,630.7,629.85,0.26774498]
[1742967639255,0.982,630.72,629.85,0.26774498]
[1742967639657,0.27608202,630.69,629.85,0.26774498]
[1742967640263,0.74108202,630.69,629.85,0.26774498]
[1742967640664,0.74108202,630.69,629.92,1.18433116]